bitfinex/quotes_ETHUSD_20260107
["timestamp","ask_amount","ask_price","bid_price","bid_amount"]
[1767807262673,0.97170974,3169.2,3168.6,3.15695397]
[1767807264779,0.97170974,3169.2,3168.6,4.13694201]
[1767807267412,0.97170974,3169.7,3168.7,0.97998804]
[1767807267576,0.97170974,3169.7,3168.9,0.97998804]
[1767807269308,0.97170974,3169.5,3168.9,0.97998804]
[1767807270309,0.97170974,3169.5,3168.9,0.98098804]
[1767807270470,0.97170974,3169.5,3168.9,4.13663417]
[1767807270672,0.97170974,3169.8,3169.0,0.97998804]
[1767807270899,0.97170974,3169.8,3169.2,0.97998804]
[1767807271407,1.79970974,3170.0,3169.3,0.97998804]
[1767807271576,0.97170974,3169.9,3169.3,0.97998804]
[1767807271909,0.97170974,3169.9,3168.9,3.15661971]
[1767807272081,7.13715224,3170.0,3169.1,0.92713884]
[1767807272401,0.95165677,3169.9,3169.1,0.92713884]
[1767807272604,0.95165677,3169.9,3168.9,0.001]
[1767807273172,0.95165677,3169.7,3168.9,0.001]
[1767807273383,0.95165677,3169.7,3168.9,0.92813884]
[1767807275673,0.95165677,3169.7,3168.9,0.001]
[1767807275869,0.95165677,3169.6,3168.9,0.92813884]
[1767807278386,0.95165677,3169.6,3168.9,4.08374198]
[1767807279506,0.95165677,3169.5,3168.9,0.001]
[1767807280578,0.95165677,3169.3,3168.9,0.001]
[1767807281082,0.95165677,3169.2,3168.9,0.001]
[1767807281416,0.7261923,3169.3,3168.7,0.92713884]
[1767807281875,0.7281923,3169.3,3168.7,0.92713884]
[1767807282674,3.88349052,3169.3,3168.7,0.92713884]
[1767807283187,0.7281923,3169.3,3168.7,0.92713884]
[1767807283506,0.002,3169.3,3168.7,0.92713884]
[1767807283813,0.002,3169.3,3168.7,4.08298849]
[1767807285178,0.002,3169.3,3168.7,0.92713884]
[1767807287306,0.002,3169.3,3168.7,4.08299108]
[1767807287511,0.002,3169.3,3168.8,0.92713884]
[1767807289826,0.95365677,3169.3,3168.6,4.08407011]
[1767807290027,0.95365677,3169.3,3168.7,0.92713884]
[1767807290351,0.002,3169.3,3168.7,0.92713884]
[1767807291025,0.95165677,3169.2,3168.6,3.15696047]
[1767807291522,0.95165677,3169.2,3168.6,0.001]
[1767807292542,0.002,3169.3,3168.7,0.92713884]
[1767807293595,0.002,3169.3,3168.7,0.9061968]
[1767807293814,0.002,3169.3,3168.9,0.92713884]
[1767807294135,0.002,3169.6,3169.3,0.92713884]
[1767807294531,0.95365677,3169.6,3168.8,4.90990758]
[1767807294824,0.002,3169.0,3168.8,4.90990758]
[1767807295025,0.95365677,3169.6,3168.9,0.92713884]
[1767807295223,0.002,3169.3,3168.9,0.92713884]
[1767807296135,0.002,3169.3,3168.8,3.15573109]
[1767807296837,0.95365677,3169.3,3168.7,4.0829714]
[1767807297734,1.36453313,3169.3,3168.8,3.15571446]
[1767807297913,0.002,3169.3,3168.8,4.0828533]
[1767807300238,0.002,3169.3,3168.9,0.92713884]
[1767807300645,0.002,3169.6,3169.3,0.92713884]
[1767807301551,3.15608139,3170.5,3168.9,0.827]
[1767807301552,0.90345671,3170.5,3169.6,0.95437135]
[1767807302046,0.90345671,3170.5,3169.8,0.96966554]
[1767807302249,4.46350329,3170.5,3169.8,0.96966554]
[1767807302449,1.3094051,3170.5,3169.8,0.96966554]
[1767807302625,0.90345671,3170.5,3169.8,0.96966554]
[1767807303533,0.002,3170.5,3169.8,0.96966554]
[1767807304538,3.15607817,3170.5,3169.8,0.96966554]
[1767807304719,4.12931724,3170.5,3169.8,0.96966554]
[1767807304923,0.97323907,3170.4,3169.8,0.96966554]
[1767807305325,0.97323907,3170.4,3169.2,0.96966554]
[1767807305326,0.97323907,3170.3,3169.2,0.96966554]
[1767807305627,0.97323907,3170.2,3168.9,3.15562286]
[1767807305826,0.97323907,3170.2,3168.9,4.12533147]
[1767807306026,0.97323907,3170.2,3169.0,0.96966554]
[1767807306227,0.97323907,3170.2,3169.0,4.12518607]
[1767807306429,0.97323907,3170.0,3169.1,0.96966554]
[1767807306757,0.97323907,3169.8,3169.1,0.96966554]
[1767807308556,0.97323907,3169.8,3168.9,4.12528933]
[1767807308734,0.97323907,3169.6,3168.9,4.12532211]
[1767807309059,0.41281118,3169.5,3168.9,4.12532211]
[1767807309258,0.97323907,3169.6,3168.9,4.12532211]
[1767807309459,0.97323907,3169.6,3168.9,0.96966554]
[1767807309850,0.97323907,3169.6,3168.9,4.12532596]
[1767807310150,0.97323907,3169.6,3168.9,0.96966554]
[1767807311042,4.12823761,3169.6,3168.9,0.96966554]
[1767807311233,0.97323907,3169.5,3168.8,3.15575232]
[1767807311433,0.97323907,3169.5,3168.8,4.12541786]
[1767807312361,0.97323907,3169.5,3168.8,0.96966554]
[1767807312533,0.97323907,3169.5,3168.6,3.1569002]
[1767807312859,0.97323907,3169.4,3168.6,4.12656574]
[1767807313447,0.97323907,3169.4,3168.6,7.28253367]
[1767807313653,0.97323907,3169.4,3168.7,0.96966554]
[1767807314954,0.97323907,3169.4,3168.7,4.12546522]
[1767807315855,0.97323907,3169.6,3168.8,0.96966554]
[1767807317165,0.97323907,3169.6,3168.8,4.12538101]
[1767807317363,0.97323907,3169.6,3168.9,0.96966554]
[1767807317867,1.46884436,3169.6,3168.9,0.96966554]
[1767807318067,0.97323907,3169.6,3168.9,0.96966554]
[1767807318871,0.97323907,3169.6,3169.0,0.001]
[1767807319243,0.97323907,3169.5,3169.0,0.001]
[1767807319872,0.97323907,3169.7,3169.0,0.97066554]
[1767807320870,0.97323907,3169.6,3169.0,0.97066554]
[1767807321074,0.97323907,3169.6,3169.0,0.001]
[1767807321252,1.38605153,3169.6,3169.0,0.001]
[1767807322582,0.97323907,3169.5,3169.0,0.001]
[1767807323305,0.97323907,3169.4,3168.7,0.96966554]
[1767807323463,0.97323907,3169.4,3168.6,0.001]
[1767807323464,0.97323907,3169.3,3168.6,0.001]
[1767807323787,0.97323907,3169.1,3168.6,0.001]
[1767807327674,0.97323907,3169.0,3168.6,0.001]
[1767807328274,0.97323907,3168.9,3168.6,0.001]
[1767807330497,0.97323907,3168.8,3168.6,0.001]
[1767807331983,0.97323907,3168.8,3168.1,0.96966554]
[1767807332185,0.99117628,3168.7,3168.1,0.96966554]
[1767807332389,0.99117628,3168.7,3167.9,0.92901334]
[1767807332817,7.30292584,3168.7,3168.0,0.92901334]
[1767807333123,0.99117628,3168.6,3167.8,4.08576421]
[1767807333429,0.99117628,3168.6,3167.9,4.08565621]
[1767807334222,0.99117628,3168.6,3168.0,0.92901334]
[1767807334730,1.40407602,3168.8,3168.1,4.08547936]
[1767807335089,0.99117628,3168.7,3168.1,4.08547936]
[1767807336526,0.99117628,3168.7,3168.1,0.92901334]
[1767807337024,0.41289974,3168.8,3168.2,0.92901334]
[1767807337192,0.828,3168.8,3168.2,0.92901334]
[1767807337719,0.99117628,3169.1,3168.2,0.92901334]
[1767807337922,0.828,3169.0,3168.2,0.92901334]
[1767807338828,6.43399999,3169.3,3168.4,0.92901334]
[1767807339036,6.43399999,3169.3,3168.6,0.92901334]
[1767807339248,0.828,3169.5,3168.6,0.92901334]
[1767807339737,1.81917628,3169.5,3168.6,0.92901334]
[1767807340039,4.97425533,3169.5,3168.6,0.92901334]
[1767807340220,1.48860181,3169.4,3168.6,0.92901334]
[1767807341144,3.15527088,3169.3,3168.6,0.92901334]
[1767807341342,4.64381833,3169.4,3168.6,4.08496502]
[1767807341544,1.48860181,3169.4,3168.7,0.92901334]
[1767807341753,0.99117628,3169.4,3168.7,0.92901334]
[1767807342239,3.15478874,3169.8,3168.7,0.92901334]
[1767807342450,0.828,3169.7,3168.7,0.92901334]
[1767807342648,0.99117628,3169.6,3168.7,0.92901334]
[1767807343120,0.002,3169.0,3168.7,0.92901334]
[1767807343316,0.002,3169.0,3168.7,4.08484544]
[1767807343546,0.002,3169.0,3168.8,0.92901334]
[1767807343751,0.99317628,3169.0,3168.5,0.001]
[1767807343916,0.002,3169.0,3168.5,0.93001334]
[1767807344109,0.002,3169.0,3168.6,4.08497916]
[1767807344313,0.002,3169.0,3168.6,0.92901334]
[1767807345040,0.002,3169.0,3168.6,4.08495606]
[1767807345241,0.002,3169.0,3168.6,0.92901334]
[1767807345448,0.002,3169.0,3168.6,4.08497507]
[1767807345658,0.99117628,3169.2,3168.6,4.08497507]
[1767807345864,0.99117628,3169.2,3168.6,0.92901334]
[1767807346650,0.99117628,3169.2,3168.6,4.08497646]
[1767807348660,0.99117628,3169.2,3168.6,0.92901334]
[1767807348963,0.99117628,3169.2,3168.6,3.15596751]
[1767807349363,0.99117628,3169.2,3168.6,4.08498085]
[1767807349545,0.99117628,3169.5,3168.6,4.08498085]
[1767807349742,0.41461641,3169.4,3168.7,0.92901334]
[1767807350063,3.15481507,3169.8,3168.7,0.92901334]
[1767807350064,0.828,3169.7,3168.7,0.92901334]
[1767807350563,0.99117628,3169.6,3168.7,0.92901334]
[1767807350765,0.99117628,3169.6,3168.9,0.92901334]
[1767807350937,1.81917628,3169.7,3168.9,0.92901334]
[1767807352374,1.81917628,3169.7,3169.0,0.92901334]
[1767807352675,0.828,3169.7,3169.0,0.92901334]
[1767807352876,1.81917628,3169.7,3169.0,4.08455629]
[1767807353177,4.97407038,3169.7,3169.0,4.08457801]
[1767807353369,1.81917628,3169.7,3169.0,4.08457801]
[1767807354244,0.828,3169.7,3169.1,0.92901334]
[1767807354665,0.826,3169.7,3169.1,0.92901334]
[1767807354870,0.826,3169.7,3169.1,4.08442757]
[1767807355189,1.81717628,3169.7,3169.1,4.08442757]
[1767807355341,0.002,3169.4,3169.2,0.92901334]
[1767807356269,0.002,3169.4,3169.0,3.15554983]
[1767807356270,0.002,3169.4,3169.0,4.08453616]
[1767807356452,0.002,3169.4,3169.0,0.92901334]
[1767807356656,0.002,3169.4,3169.0,4.08457528]
[1767807357957,0.002,3169.4,3169.0,0.92901334]
[1767807359275,0.002,3169.4,3169.0,4.08457326]
[1767807361591,0.002,3169.4,3169.0,7.24014284]
[1767807362871,0.002,3169.4,3169.0,4.08457326]
[1767807363703,0.002,3169.4,3169.0,0.92901334]
[1767807364199,0.94165323,3169.4,3168.9,0.001]
[1767807364393,0.94165323,3169.4,3168.9,3.15665757]
[1767807364700,0.94165323,3169.4,3168.9,0.001]
[1767807365982,0.93965323,3169.4,3168.9,0.001]
[1767807366185,0.93965323,3169.3,3168.9,0.001]
[1767807368387,0.002,3169.1,3168.9,0.001]
[1767807369200,0.94165323,3169.1,3168.5,0.001]
[1767807370206,0.93965323,3169.0,3168.5,0.001]
[1767807370516,0.93965323,3168.8,3168.5,0.001]
[1767807371213,4.09546382,3168.8,3168.5,0.001]
[1767807371414,0.93965323,3168.7,3168.5,0.001]
[1767807371717,0.93965323,3168.7,3167.6,0.96248216]
[1767807372126,0.93965323,3168.7,3167.7,3.15682235]
[1767807372298,0.93965323,3168.5,3167.7,3.15682235]
[1767807372500,0.93965323,3168.5,3167.6,4.11939926]
[1767807372890,0.93965323,3168.5,3167.7,3.15680724]
[1767807373198,0.93965323,3168.4,3167.7,3.15680724]
[1767807373422,0.93965323,3168.4,3167.4,0.96348216]
[1767807373713,0.93965323,3168.3,3167.4,0.96348216]
[1767807374621,0.93965323,3168.2,3167.5,3.15701506]
[1767807375116,0.93965323,3168.2,3167.5,7.27656115]
[1767807375489,0.93965323,3168.2,3167.5,4.11949722]
[1767807379140,0.93965323,3168.2,3167.5,0.96248216]
[1767807379141,3.15643776,3168.2,3167.5,0.96248216]
[1767807379438,0.93965323,3168.0,3167.4,3.15815969]
[1767807380334,0.93965323,3168.0,3167.4,0.001]
[1767807382440,0.93965323,3168.0,3167.7,0.001]
[1767807385938,0.93965323,3167.9,3167.7,0.001]
[1767807387750,0.93965323,3167.8,3167.7,0.001]
[1767807387932,0.93965323,3167.7,3167.4,0.001]
[1767807388467,0.93965323,3167.7,3167.1,0.001]
[1767807389468,0.72529805,3167.8,3167.2,0.96248216]
[1767807389666,0.93965323,3167.7,3167.1,0.001]
[1767807390250,0.93965323,3167.7,3167.1,3.15844631]
[1767807390676,0.93965323,3167.7,3167.1,0.001]
[1767807391086,1.76765323,3167.9,3167.2,0.96248216]
[1767807391282,0.93965323,3167.8,3167.2,0.96248216]
[1767807391582,0.93965323,3167.8,3167.1,0.001]
[1767807391882,0.93965323,3167.7,3167.1,0.001]
[1767807393276,0.94459501,3167.6,3167.1,0.001]
[1767807394059,4.10163806,3167.6,3167.4,0.001]
[1767807394280,0.94459501,3167.5,3167.1,0.001]
[1767807398703,0.94459501,3167.8,3167.1,0.001]
[1767807400283,0.94459501,3167.6,3167.1,0.001]
[1767807400596,0.94459501,3167.4,3167.1,0.001]
[1767807404308,4.10175901,3167.4,3167.1,0.001]
[1767807404508,0.94459501,3167.4,3167.1,0.001]
[1767807405410,4.10178194,3167.4,3167.1,0.001]
[1767807405914,0.94459501,3167.4,3167.1,0.001]
[1767807406480,0.94459501,3167.3,3167.1,0.001]
[1767807406814,0.94459501,3167.5,3167.1,0.001]
[1767807408713,4.10173753,3167.5,3167.1,0.001]
[1767807409011,0.41017375,3167.4,3167.1,0.001]
[1767807410486,0.94459501,3167.5,3167.1,0.001]
[1767807411101,4.10169049,3167.5,3167.1,0.001]
[1767807411882,0.94459501,3167.5,3167.1,0.001]
[1767807413085,4.10138391,3167.8,3167.1,0.001]
[1767807413288,0.94459501,3167.7,3167.1,0.001]
[1767807413489,1.67041229,3167.6,3167.1,0.001]
[1767807413810,0.94459501,3167.5,3167.1,0.001]
[1767807416812,4.10169327,3167.5,3167.1,0.001]
[1767807417018,0.94459501,3167.4,3167.1,0.001]
[1767807417221,4.1017706,3167.4,3167.1,0.001]
[1767807417419,4.90022599,3167.4,3167.1,0.001]
[1767807418129,0.94459501,3167.3,3167.1,0.001]
[1767807421640,0.79845539,3167.4,3167.1,0.001]
[1767807421839,0.94907809,3167.8,3167.1,0.94491752]
[1767807422230,0.94907809,3167.8,3167.1,0.001]
[1767807422732,7.26280729,3167.7,3167.1,0.001]
[1767807422926,0.94907809,3167.6,3167.1,0.001]
[1767807423230,1.67535882,3167.5,3167.1,0.001]
[1767807424011,0.94907809,3167.4,3167.1,0.001]
[1767807424216,0.94907809,3167.3,3166.5,0.94391752]
[1767807424540,0.94907809,3167.3,3166.7,0.94391752]
[1767807424707,0.94907809,3167.3,3166.5,0.94391752]
[1767807424910,0.17770781,3167.2,3166.5,0.94391752]
[1767807425111,0.17770781,3167.2,3166.5,4.10195958]
[1767807425307,1.1267859,3167.2,3166.5,0.94391752]
[1767807425724,1.1267859,3167.2,3166.5,4.10196729]
[1767807426325,1.1267859,3167.2,3166.6,0.94391752]
[1767807428326,0.42840815,3167.1,3166.6,0.94391752]
[1767807428526,1.37748624,3167.1,3166.4,4.10205703]
[1767807428726,1.37748624,3167.1,3166.4,0.94391752]
[1767807428927,1.37748624,3167.1,3166.4,4.10206631]
[1767807429124,0.94907809,3167.0,3166.4,3.15814879]
[1767807429347,0.94907809,3166.9,3166.1,4.10227848]
[1767807429547,0.94907809,3166.9,3166.1,3.15836096]
[1767807429747,0.94907809,3166.8,3165.8,0.94391752]
[1767807429952,0.94907809,3166.8,3165.9,0.94391752]
[1767807430251,0.94907809,3166.6,3165.9,0.94391752]
[1767807430457,0.94907809,3166.5,3165.9,0.94391752]
[1767807431332,0.94907809,3166.5,3165.7,0.94391752]
[1767807432253,0.94907809,3166.5,3165.7,4.10277459]
[1767807432421,0.94907809,3166.4,3165.7,0.94391752]
[1767807433948,0.94907809,3166.3,3165.6,3.15891458]
[1767807434154,0.94907809,3166.3,3165.5,3.15901636]
[1767807434532,0.94907809,3166.2,3165.3,3.16023452]
[1767807434856,0.94907809,3166.2,3165.4,0.39882345]
[1767807435355,0.94907809,3166.2,3165.4,1.34274097]
[1767807435847,0.94907809,3166.2,3165.5,0.94391752]
[1767807436450,0.829,3166.3,3165.7,0.94391752]
[1767807436652,1.32261451,3166.3,3165.7,0.94391752]
[1767807436964,1.4426926,3166.3,3165.7,0.94391752]
[1767807437547,4.60095492,3166.3,3165.7,0.94391752]
[1767807437744,1.4426926,3166.3,3165.7,0.94391752]
[1767807438828,4.60095739,3166.3,3165.7,0.94391752]
[1767807439030,0.54299574,3166.2,3165.7,0.94391752]
[1767807441090,0.54299574,3166.2,3166.0,0.001]
[1767807441288,0.94907809,3166.3,3166.0,0.001]
[1767807444293,0.94907809,3166.3,3165.3,0.001]
[1767807444462,0.94907809,3166.2,3165.3,1.01e-06]
[1767807445257,3.15836685,3166.2,3165.3,0.94391853]
[1767807445460,0.94907809,3166.6,3165.3,0.94391853]
[1767807445713,1.77807809,3166.5,3165.3,0.94391853]
[1767807445903,0.94907809,3166.4,3165.3,0.94391853]
[1767807447486,0.94907809,3166.2,3165.5,0.94391752]
[1767807449588,4.10746163,3166.2,3165.5,0.94391752]
[1767807449789,0.94907809,3166.1,3165.3,1.01e-06]
[1767807450392,3.15826685,3166.3,3165.5,0.94391752]
[1767807450606,3.15826685,3166.3,3165.6,0.94391752]
[1767807450909,0.829,3166.2,3165.6,0.94391752]
[1767807452512,0.829,3166.2,3165.6,4.10284623]
[1767807452812,0.829,3166.2,3165.7,0.99127446]
[1767807453177,0.829,3166.2,3165.9,0.001]
[1767807453378,5.40444478,3166.2,3165.9,0.001]
[1767807453604,0.92344011,3166.1,3165.9,0.001]
[1767807454511,1.3226354,3166.2,3165.9,0.001]
[1767807455581,2.24607551,3166.2,3165.9,0.001]
[1767807455781,5.4044486,3166.2,3165.9,0.001]
[1767807456102,0.54044486,3166.1,3165.9,0.001]
[1767807457309,0.92344011,3166.2,3165.9,0.001]
[1767807464118,0.92344011,3166.1,3165.9,0.001]
[1767807464425,6.31472594,3167.2,3166.0,0.99127446]
[1767807464721,0.92344011,3167.0,3166.0,0.99127446]
[1767807465219,0.002,3166.2,3165.9,0.001]
[1767807465523,0.92344011,3166.1,3165.9,0.001]
[1767807465820,0.92344011,3166.1,3165.4,0.99127446]
[1767807467304,7.24055949,3166.0,3165.3,1.01e-06]
[1767807467513,0.92344011,3165.8,3165.3,1.01e-06]
[1767807467685,1.55305595,3165.9,3165.3,1.01e-06]
[1767807469093,2.47649606,3165.9,3165.2,4.15061159]
[1767807469626,5.63519648,3165.9,3165.2,0.99127446]
[1767807470186,2.47649606,3165.9,3165.2,4.15062696]
[1767807470393,0.56351965,3165.8,3165.2,0.99127446]
[1767807471192,1.48695976,3165.8,3165.2,0.99127446]
[1767807471391,1.48695976,3165.8,3165.1,4.1507291]
[1767807471719,1.48695976,3165.8,3165.1,4.15071918]
[1767807472429,0.92344011,3165.7,3165.1,0.99127446]
[1767807472728,1.47091216,3165.7,3165.1,0.99127446]
[1767807473821,4.62979061,3165.7,3165.1,0.99127446]
[1767807474226,0.92344011,3165.6,3165.0,6.601]
[1767807475211,0.92344011,3165.6,3165.0,3.4392573]
[1767807475512,0.92344011,3165.4,3165.0,1.8852573]
[1767807475717,4.08269831,3165.3,3165.0,1.8852573]
[1767807476422,0.92344011,3165.3,3165.0,1.8852573]
[1767807477804,0.92344011,3165.2,3165.0,1.8852573]
[1767807479100,1.75244011,3165.4,3165.0,1.8852573]
[1767807480232,4.91161879,3165.4,3165.0,1.8852573]
[1767807480403,2.55970004,3165.4,3165.0,1.8852573]
[1767807481414,1.75244011,3165.4,3165.0,1.8852573]
[1767807481942,1.75244011,3165.4,3163.4,0.94816537]
[1767807481943,0.93900914,3165.3,3163.8,0.95731911]
[1767807482104,0.93900914,3165.1,3163.8,0.95731911]
[1767807482735,0.93900914,3165.1,3163.9,0.95631911]
[1767807482945,3.15935801,3165.2,3163.9,0.95631911]
[1767807483106,0.829,3165.0,3164.1,0.95631911]
[1767807483414,0.93900914,3164.9,3163.9,0.95631911]
[1767807483821,0.829,3165.0,3163.9,0.95631911]
[1767807484228,0.829,3165.0,3164.1,0.95631911]
[1767807484415,0.829,3165.0,3164.3,0.95631911]
[1767807486345,4.06622736,3165.2,3164.5,0.91838434]
[1767807486651,0.829,3165.3,3164.5,0.91838434]
[1767807487143,4.8951042,3165.3,3164.5,0.91838434]
[1767807487744,1.73579897,3165.3,3164.5,0.91838434]
[1767807488051,7.26299999,3165.5,3164.5,0.91838434]
[1767807488348,8.16979896,3165.5,3164.5,0.91838434]
[1767807488920,11.32887558,3165.5,3164.7,0.91838434]
[1767807489249,0.90679897,3165.4,3164.7,0.91838434]
[1767807491223,0.90679897,3165.4,3164.7,4.07823623]
[1767807491451,4.06596768,3165.4,3164.7,4.07823623]
[1767807491653,0.90679897,3165.3,3164.7,0.91838434]
[1767807493464,7.34079896,3165.5,3164.8,0.91838434]
[1767807493754,11.32887043,3165.5,3164.8,0.91838434]
[1767807494256,8.16979896,3165.5,3164.8,0.91838434]
[1767807494456,6.43399999,3165.5,3164.9,0.91838434]
[1767807494666,0.002,3165.6,3164.9,0.91838434]
[1767807495524,0.002,3165.6,3165.1,0.91838434]
[1767807497564,0.002,3165.6,3165.3,0.91838434]
[1767807498347,0.002,3165.6,3165.2,3.15935801]
[1767807498740,0.002,3165.6,3165.3,0.91838434]
[1767807500483,0.002,3165.6,3165.4,0.91838434]
[1767807500988,0.002,3165.9,3165.4,0.91838434]
[1767807501538,0.90879897,3165.9,3165.2,0.91838434]
[1767807501856,0.002,3165.9,3165.4,0.91838434]
[1767807502449,0.002,3165.9,3165.5,0.91838434]
[1767807503449,0.002,3165.9,3165.3,4.07758262]
[1767807503650,0.002,3165.9,3165.4,0.91838434]
[1767807504149,0.90879897,3165.9,3165.2,4.07769847]
[1767807504564,0.90879897,3165.9,3165.2,3.15931413]
[1767807504764,0.90879897,3165.9,3165.0,0.91838434]
[1767807505446,0.002,3165.9,3165.0,0.91838434]
[1767807506670,0.002,3165.9,3165.2,0.91838434]
[1767807506876,0.002,3165.9,3165.4,0.91838434]
[1767807509379,0.002,3165.9,3165.4,4.07753072]
[1767807509584,0.002,3165.9,3165.5,0.91838434]
[1767807510075,0.90879897,3166.2,3165.5,0.91838434]
[1767807510486,0.90679897,3166.1,3165.5,0.91838434]
[1767807513488,0.94279295,3166.0,3165.4,3.15914638]
[1767807513691,0.94279295,3166.0,3165.4,4.15837168]
[1767807513844,0.94279295,3166.0,3165.4,0.9992253]
[1767807514046,0.94279295,3166.0,3165.4,4.15837374]
[1767807514982,0.94479295,3166.2,3165.5,0.9992253]
[1767807515385,1.43799307,3166.2,3165.6,0.001]
[1767807515757,0.002,3165.8,3165.6,0.001]
[1767807515954,0.002,3165.8,3165.6,3.1599588]
[1767807516176,0.94479295,3165.8,3165.6,3.1599588]
[1767807516390,0.002,3165.8,3165.6,3.1599588]
[1767807517858,0.002,3165.8,3165.6,0.001]
[1767807519165,0.94479295,3166.1,3165.6,0.001]
[1767807520290,1.17169226,3166.1,3165.6,0.001]
[1767807520486,0.002,3166.2,3165.6,1.0002253]
[1767807520693,0.94479295,3166.2,3165.6,1.0002253]
[1767807521169,0.002,3166.2,3165.6,1.0002253]
[1767807521878,0.002,3166.2,3165.7,7.31694334]
[1767807522486,0.002,3166.2,3165.8,0.9992253]
[1767807523371,0.002,3166.2,3165.7,3.15885902]
[1767807523572,0.002,3166.2,3165.7,4.15808432]
[1767807523779,0.002,3166.2,3165.7,7.31694334]
[1767807524494,3.15769464,3166.9,3165.7,7.31694334]
[1767807524495,0.94279295,3167.1,3165.9,0.9992253]
[1767807526367,0.94279295,3167.1,3166.1,0.9992253]
[1767807528191,0.002,3167.2,3166.1,0.9992253]
[1767807528502,0.94479295,3167.4,3166.8,0.9992253]
[1767807529613,0.002,3167.1,3166.8,0.9992253]
[1767807530393,0.002,3167.1,3166.8,4.15691957]
[1767807531379,0.002,3167.1,3166.8,0.9992253]
[1767807531588,0.002,3167.1,3166.8,3.15775784]
[1767807531892,0.002,3167.1,3166.7,3.15782897]
[1767807532095,0.94479295,3167.1,3166.6,3.15794544]
[1767807532486,0.94479295,3167.1,3166.5,3.15806095]
[1767807532798,0.94479295,3167.1,3166.5,6.73185053]
[1767807533489,0.94479295,3167.1,3166.5,4.57301488]
[1767807533684,0.94479295,3167.1,3166.4,3.15813376]
[1767807533685,0.94479295,3167.1,3166.4,3.15814657]
[1767807533885,0.94279295,3167.0,3166.2,3.1582856]
[1767807534087,0.94279295,3167.0,3166.1,0.828]
[1767807534293,0.94279295,3167.0,3166.1,3.98640372]
[1767807534601,0.94279295,3166.9,3166.0,6.31710495]
[1767807534773,0.94279295,3166.9,3166.0,7.31633025]
[1767807535300,0.94279295,3166.9,3166.1,0.9992253]
[1767807536800,0.94279295,3166.9,3166.2,6.31672034]
[1767807537000,0.94279295,3166.9,3166.2,3.15836017]
[1767807537607,0.94279295,3166.9,3166.2,6.31672034]
[1767807537910,0.94279295,3166.9,3166.2,3.15836017]
[1767807538117,0.94279295,3166.9,3166.2,7.31594564]
[1767807538314,0.94279295,3166.9,3166.2,4.15758547]
[1767807540000,0.94279295,3166.8,3166.2,4.15758547]
[1767807540703,0.94279295,3166.8,3166.1,3.15844201]
[1767807540704,0.94279295,3166.8,3166.1,3.15842261]
[1767807540878,0.94279295,3166.8,3166.2,6.3167079]
[1767807541078,0.94279295,3166.8,3166.2,7.28795274]
[1767807541710,0.97576569,3167.0,3166.3,0.97124484]
[1767807541919,0.002,3167.1,3166.5,0.99590973]
[1767807542121,0.90487559,3167.0,3166.4,6.31632136]
[1767807542407,0.90487559,3167.0,3166.5,0.001]
[1767807542577,0.002,3167.1,3166.5,0.99690973]
[1767807544005,0.002,3167.1,3166.6,7.31183217]
[1767807544278,0.002,3167.1,3166.7,0.99590973]
[1767807546499,0.002,3167.1,3166.8,7.31143327]
[1767807548494,0.90687559,3167.5,3166.9,0.99590973]
[1767807549523,0.90687559,3167.5,3166.8,3.15776177]
[1767807550892,0.90487559,3167.4,3166.6,3.15792833]
[1767807551090,0.90487559,3167.3,3166.6,3.15792833]
[1767807551343,0.90487559,3167.3,3166.5,0.001]
[1767807551618,0.90487559,3167.3,3165.9,3.15862852]
[1767807551916,0.90487559,3167.3,3166.0,3.15849577]
[1767807552287,0.90487559,3167.3,3166.1,3.15843233]
[1767807552501,0.90487559,3167.1,3166.1,3.15843233]
[1767807552712,0.90487559,3166.9,3165.7,0.99690973]
[1767807552915,0.90487559,3166.8,3165.7,0.99690973]
[1767807554014,0.90487559,3166.8,3166.3,0.001]
[1767807554195,0.90487559,3166.6,3166.3,0.001]
[1767807555724,0.90487559,3166.8,3166.3,0.001]
[1767807556894,0.90487559,3166.7,3166.3,0.001]
[1767807561538,0.90487559,3166.9,3166.3,0.001]
[1767807561725,1.07826315,3166.9,3166.3,0.99690973]
[1767807561896,1.07826315,3166.9,3166.3,0.001]
[1767807562101,0.90487559,3167.1,3166.3,0.99690973]
[1767807562427,0.90487559,3167.4,3166.3,0.99690973]
[1767807562728,0.002,3167.5,3166.3,0.99690973]
[1767807563134,0.002,3167.5,3166.5,0.99590973]
[1767807563312,0.002,3167.5,3166.7,0.99590973]
[1767807564533,0.90687559,3167.5,3166.7,0.99590973]
[1767807565102,0.90687559,3167.5,3166.8,3.15776177]
[1767807566044,0.002,3167.2,3166.8,7.31143327]
[1767807566807,0.002,3167.2,3166.8,4.1536715]
[1767807568045,0.002,3167.2,3166.8,7.31143327]
[1767807568352,0.002,3167.2,3166.8,6.31552354]
[1767807568530,0.90687559,3167.2,3166.7,3.15781288]
[1767807569637,0.90687559,3167.2,3166.6,3.15793558]
[1767807569840,0.90687559,3167.2,3166.3,0.001]
[1767807569841,0.90487559,3167.1,3166.3,0.001]
[1767807570043,0.90487559,3166.7,3166.3,0.001]
[1767807573663,0.93933558,3166.6,3166.3,0.001]
[1767807576729,0.93933558,3166.8,3166.3,0.001]
[1767807578979,3.33117802,3167.0,3166.3,0.97308978]
[1767807578980,1.11292314,3167.0,3166.3,0.97308978]
[1767807579774,0.93933558,3166.9,3166.3,0.97308978]
[1767807580131,0.93933558,3166.9,3166.3,0.001]
[1767807580477,0.93933558,3166.8,3166.3,0.001]
[1767807583471,4.0970982,3166.8,3166.3,0.001]
[1767807583671,0.93933558,3166.7,3166.3,0.001]
[1767807591297,1.76833558,3166.9,3166.3,0.001]
[1767807591500,1.76833558,3166.9,3166.3,0.97308978]
[1767807591903,0.93933558,3166.8,3166.3,0.001]
[1767807592198,4.18088618,3166.9,3166.3,0.001]
[1767807592199,0.93933558,3166.7,3166.3,0.001]
[1767807592374,0.19419231,3166.9,3166.3,0.97308978]
[1767807592556,0.829,3166.8,3166.3,0.97308978]
[1767807599695,0.829,3166.8,3166.3,4.13134057]
[1767807600087,0.829,3166.8,3166.3,0.97308978]
[1767807601002,0.829,3166.8,3166.3,4.13132094]
[1767807601203,0.002,3166.5,3166.4,0.9262007]
[1767807606614,0.002,3166.5,3166.3,0.001]
[1767807606911,0.95750696,3166.5,3166.3,0.001]
[1767807607117,0.95750696,3166.5,3165.8,0.93226153]
[1767807607305,0.95750696,3166.5,3165.7,3.15983145]